bitfinex/quotes_ETHUSD_20230109
["timestamp","ask_amount","ask_price","bid_price","bid_amount"]
[1673252879744,3.47680896,1310.3,1310.2,5.70557007]
[1673252880075,21.05813649,1310.3,1310.2,3.0]
[1673252880235,21.05813649,1310.3,1310.1,7.5437]
[1673252880448,2.85094791,1310.2,1310.1,7.5437]
[1673252880650,2.85094791,1310.2,1309.9,14.28344426]
[1673252880869,5.13164043,1310.1,1309.9,8.24019778]
[1673252881181,5.13164043,1310.1,1309.9,4.10214426]
[1673252881419,2.28069252,1310.1,1309.9,4.10214426]
[1673252881634,2.28069252,1310.1,1310.0,3.0]
[1673252883175,5.13164043,1310.1,1310.0,3.0]
[1673252883391,5.13164043,1310.1,1309.9,3.10214426]
[1673252883594,2.28069252,1310.1,1309.9,10.73630426]
[1673252884440,5.13807937,1310.2,1309.9,26.00464426]
[1673252884680,5.13807937,1310.2,1309.9,18.37047426]
[1673252886273,6.67789952,1310.2,1309.9,18.37047426]
[1673252887376,2.28713146,1310.2,1309.9,18.37047426]
[1673252887583,5.13807937,1310.2,1309.9,18.37047426]
[1673252887820,2.28713146,1310.2,1309.9,18.37047426]
[1673252890734,2.28713146,1310.2,1309.9,26.00464426]
[1673252890905,2.33713146,1310.2,1309.9,26.00464426]
[1673252891123,2.28713146,1310.2,1309.9,26.00464426]
[1673252891329,2.28713146,1310.2,1309.9,29.82487487]
[1673252892420,2.28713146,1310.2,1309.9,29.8219916]
[1673252894481,2.28713146,1310.2,1309.9,22.1878216]
[1673252894733,2.28713146,1310.2,1309.9,18.36759099]
[1673252895375,2.28713146,1310.2,1309.9,26.00176099]
[1673252895852,2.28713146,1310.2,1309.9,18.36759099]
[1673252897205,5.13807937,1310.2,1309.9,18.36759099]
[1673252898690,2.28713146,1310.2,1309.9,18.36759099]
[1673252899055,5.13807937,1310.2,1309.9,18.36759099]
[1673252900613,2.28713146,1310.2,1309.9,18.36759099]
[1673252901209,2.33713146,1310.2,1309.9,18.36759099]
[1673252901423,2.28713146,1310.2,1309.9,18.36759099]
[1673252902473,5.13807937,1310.2,1309.9,18.36759099]
[1673252902877,2.28713146,1310.2,1309.9,18.36759099]
[1673252903623,5.13807937,1310.2,1309.9,18.36759099]
[1673252903845,2.28713146,1310.2,1309.9,18.36759099]
[1673252904501,5.13807937,1310.2,1309.9,18.36759099]
[1673252904967,2.28713146,1310.2,1309.9,18.36759099]
[1673252907375,8.63145952,1310.2,1309.9,18.36759099]
[1673252912022,8.63145952,1310.2,1309.9,26.00176099]
[1673252912327,8.63145952,1310.2,1309.9,18.36759099]
[1673252912481,8.63145952,1310.2,1309.9,26.00176099]
[1673252913171,8.63145952,1310.2,1309.9,18.36759099]
[1673252913541,2.28069252,1310.1,1309.9,18.36759099]
[1673252915542,2.27738033,1310.1,1309.9,18.36759099]
[1673252915768,2.27738033,1310.1,1309.9,26.00176099]
[1673252916077,2.27738033,1310.1,1309.9,29.81994461]
[1673252916649,2.27738033,1310.1,1309.9,22.18577461]
[1673252917172,2.27738033,1310.1,1310.0,13.61596803]
[1673252917355,2.27738033,1310.1,1310.0,9.61596803]
[1673252917522,2.27738033,1310.1,1310.0,12.61596803]
[1673252917734,2.27738033,1310.1,1310.0,27.88312803]
[1673252918169,2.27738033,1310.1,1310.0,25.90074]
[1673252919209,2.27738033,1310.1,1310.0,27.88321939]
[1673252920060,2.27738033,1310.1,1310.0,25.90074]
[1673252921113,2.27738033,1310.1,1310.0,27.88321939]
[1673252921308,2.27738033,1310.1,1310.0,31.747573]
[1673252923153,2.27738033,1310.1,1310.0,29.76509361]
[1673252924205,2.27738033,1310.1,1310.0,31.74771752]
[1673252925216,2.27738033,1310.1,1310.0,29.76509361]
[1673252926076,2.27738033,1310.1,1310.0,31.74771752]
[1673252926504,5.12832824,1310.2,1310.0,31.74771752]
[1673252926723,5.12832824,1310.2,1310.1,25.899]
[1673252928393,5.12832824,1310.2,1310.1,28.9046851]
[1673252929026,5.12832824,1310.2,1310.1,30.88636136]
[1673252929884,2.85094791,1310.2,1310.1,15.62036136]
[1673252930219,2.85094791,1310.2,1310.1,10.633]
[1673252931117,2.85094791,1310.2,1310.1,20.24767626]
[1673252931327,2.85200522,1310.2,1310.1,20.24767626]
[1673252931587,3.41493437,1310.3,1310.1,20.24767626]
[1673252931963,3.41493437,1310.3,1310.1,18.266]
[1673252932173,2.85200319,1310.2,1310.1,18.266]
[1673252932385,2.85200319,1310.2,1310.1,25.899]
[1673252932623,2.85200319,1310.2,1310.1,18.266]
[1673252932798,2.85200319,1310.2,1310.1,25.899]
[1673252933008,2.85200319,1310.2,1310.1,27.88067626]
[1673252933262,2.85200319,1310.2,1310.1,20.24767626]
[1673252933482,2.85200319,1310.2,1310.1,12.61467626]
[1673252933849,2.85200319,1310.2,1310.1,20.24767626]
[1673252934054,2.85200319,1310.2,1310.1,18.266]
[1673252934944,2.85200319,1310.2,1310.1,10.633]
[1673252935109,2.85200319,1310.2,1310.1,12.61467626]
[1673252935328,2.85200319,1310.2,1310.1,4.98167626]
[1673252935851,2.85200319,1310.2,1310.1,12.61467626]
[1673252936061,2.85200319,1310.2,1310.1,10.633]
[1673252937131,2.85200319,1310.2,1310.1,20.24767626]
[1673252937473,2.85200319,1310.2,1310.1,12.61467626]
[1673252937846,2.85200319,1310.2,1310.1,12.61145223]
[1673252938059,2.85200319,1310.2,1310.1,10.62977597]
[1673252938737,5.1336731,1310.2,1310.1,10.62977597]
[1673252938893,5.1336731,1310.2,1310.1,25.89577597]
[1673252939261,5.1336731,1310.2,1310.1,27.87756741]
[1673252940209,5.1336731,1310.2,1310.1,25.89577597]
[1673252941254,5.1336731,1310.2,1310.1,27.87756741]
[1673252942316,5.1336731,1310.2,1310.1,20.24456741]
[1673252942718,5.1336731,1310.2,1310.1,12.61156741]
[1673252943078,5.1336731,1310.2,1310.1,10.62977597]
[1673252943651,5.13358644,1310.2,1310.1,10.62977597]
[1673252944012,5.13358496,1310.2,1310.1,10.62977597]
[1673252944207,5.13358496,1310.2,1310.1,12.61156741]
[1673252944418,5.13358496,1310.2,1310.1,20.24456741]
[1673252944649,2.85200319,1310.2,1310.1,20.24456741]
[1673252944808,2.85200319,1310.2,1310.1,12.61156741]
[1673252945022,5.1334705,1310.2,1310.1,12.61156741]
[1673252947561,2.85200319,1310.2,1310.1,12.61156741]
[1673252947902,5.13343684,1310.2,1310.1,12.61156741]
[1673252948694,2.85200319,1310.2,1310.1,12.61156741]
[1673252948978,5.13343919,1310.2,1310.1,12.61156741]
[1673252949114,5.13343919,1310.2,1310.1,4.97856741]
[1673252949115,3.47869695,1310.2,1310.1,4.97856741]
[1673252949926,3.47869695,1310.2,1310.1,12.61156741]
[1673252950078,5.13344757,1310.2,1310.1,20.24456741]
[1673252951015,5.13344757,1310.2,1310.1,27.87756741]
[1673252951656,5.13344757,1310.2,1310.1,20.24456741]
[1673252953057,5.13344757,1310.2,1310.1,27.87756741]
[1673252953587,5.13344757,1310.2,1310.1,20.24456741]
[1673252953769,5.13344757,1310.2,1310.1,27.87756741]
[1673252955803,2.28144438,1310.2,1310.1,27.87756741]
[1673252956642,2.28144438,1310.2,1310.1,20.24456741]
[1673252956785,2.28144438,1310.2,1310.1,27.87756741]
[1673252957466,5.13344757,1310.2,1310.1,20.24456741]
[1673252957681,2.28144438,1310.2,1310.1,27.87756741]
[1673252957841,2.28144438,1310.2,1310.1,20.24456741]
[1673252958049,5.13344757,1310.2,1310.1,20.24105113]
[1673252958303,5.13344757,1310.2,1310.1,27.87405113]
[1673252958520,5.13344757,1310.2,1310.1,20.24105113]
[1673252959433,2.28144438,1310.2,1310.1,27.87405113]
[1673252960200,2.28144438,1310.2,1310.1,20.24105113]
[1673252960938,2.28144438,1310.2,1310.1,23.20377124]
[1673252961748,2.28144438,1310.2,1310.1,30.83677124]
[1673252961954,2.28144438,1310.2,1310.1,23.20377124]
[1673252962623,2.28144438,1310.2,1310.1,20.24105113]
[1673252962937,5.13344757,1310.2,1310.1,20.24105113]
[1673252964152,2.28144438,1310.2,1310.1,20.24105113]
[1673252964944,5.13344757,1310.2,1310.1,27.87405113]
[1673252965150,5.13344757,1310.2,1310.1,20.24105113]
[1673252965477,5.13344757,1310.2,1310.1,12.60805113]
[1673252965622,5.13344757,1310.2,1310.1,20.24105113]
[1673252965838,5.13344757,1310.2,1310.1,12.60805113]
[1673252966584,2.85200319,1310.2,1310.1,12.60805113]
[1673252967011,5.13389794,1310.2,1310.1,12.60805113]
[1673252967228,2.85200319,1310.2,1310.1,12.60805113]
[1673252969464,3.47869695,1310.2,1310.1,12.60805113]
[1673252970991,3.47869695,1310.2,1310.1,4.97505113]
[1673252971214,3.47869695,1310.2,1310.1,12.60805113]
[1673252972035,3.47869695,1310.2,1310.1,27.87405113]
[1673252972248,2.28192999,1310.2,1310.1,27.87405113]
[1673252973333,5.13393318,1310.2,1310.1,27.87405113]
[1673252973540,2.28192999,1310.2,1310.1,27.87405113]
[1673252975673,2.85200319,1310.3,1310.1,35.5111531]
[1673252975674,2.28192999,1310.3,1310.1,35.5111531]
[1673252975848,5.13393318,1310.4,1310.2,11.76899135]
[1673252976045,5.13393318,1310.4,1310.3,29.89552]
[1673252976241,2.28192999,1310.4,1310.3,29.89552]
[1673252976664,5.13393318,1310.4,1310.3,29.89552]
[1673252976980,5.13393318,1310.4,1310.3,34.22189395]
[1673252977199,5.13393318,1310.4,1310.3,30.22189395]
[1673252977836,2.28192999,1310.4,1310.3,30.22189395]
[1673252979108,2.28192999,1310.4,1310.3,34.21104346]
[1673252982161,2.28192999,1310.4,1310.3,36.2069324]
[1673252985520,2.28192999,1310.4,1310.3,37.9599324]
[1673252986284,2.28192999,1310.4,1310.3,38.72347074]
[1673252990651,2.28192999,1310.4,1310.3,36.97047074]
[1673252992566,5.13393318,1310.5,1310.3,36.97047074]
[1673252992969,5.1300763,1310.5,1310.3,36.97047074]
[1673252993324,2.28192999,1310.5,1310.3,36.97047074]
[1673252993633,2.28192999,1310.5,1310.3,40.97047074]
[1673252994008,2.28192999,1310.6,1310.3,40.97047074]
[1673252994560,2.28192999,1310.5,1310.3,40.97047074]
[1673252994958,2.28192999,1310.5,1310.3,36.97047074]
[1673252997120,2.28192999,1310.5,1310.4,3.98914951]
[1673252997434,2.28192999,1310.6,1310.4,32.40460701]
[1673252997644,2.28192999,1310.6,1310.4,33.40460701]
[1673253000280,2.28192999,1310.6,1310.5,3.98914951]
[1673253000507,2.28192999,1310.6,1310.5,29.88115951]
[1673253002667,2.28192999,1310.6,1310.5,32.07444422]
[1673253002877,2.28192999,1310.6,1310.5,36.67812344]
[1673253003343,2.28192999,1310.6,1310.5,36.67131408]
[1673253003870,2.28192999,1310.6,1310.5,5.19328471]
[1673253004193,5.12862498,1310.6,1310.5,5.19328471]
[1673253004842,2.84669499,1310.6,1310.5,5.19328471]
[1673253006895,2.84669499,1310.6,1310.5,12.82395471]
[1673253007212,5.12415749,1310.6,1310.5,12.82395471]
[1673253007431,2.2774625,1310.6,1310.5,5.19328471]
[1673253007812,5.12415749,1310.6,1310.5,5.19328471]
[1673253008067,2.2774625,1310.6,1310.5,12.82395471]
[1673253008612,2.2774625,1310.6,1310.5,5.19328471]
[1673253009507,2.2774625,1310.6,1310.5,12.82395471]
[1673253010129,2.2774625,1310.6,1310.5,5.19328471]
[1673253010508,5.12415749,1310.6,1310.5,5.19328471]
[1673253011348,2.2774625,1310.6,1310.5,5.19328471]
[1673253011559,5.12415749,1310.6,1310.5,5.19328471]
[1673253011771,5.12415749,1310.6,1310.5,12.82395471]
[1673253011976,5.12415749,1310.6,1310.5,5.19328471]
[1673253012511,5.12415749,1310.6,1310.5,12.82395471]
[1673253013443,5.12415749,1310.6,1310.5,5.19328471]
[1673253013912,2.84669499,1310.6,1310.5,5.19328471]
[1673253014755,5.1265101,1310.6,1310.5,5.19328471]
[1673253014919,5.1265101,1310.6,1310.5,12.82395471]
[1673253015759,5.1265101,1310.6,1310.5,5.19328471]
[1673253016400,2.84669499,1310.6,1310.5,5.19328471]
[1673253017965,5.12653457,1310.6,1310.5,5.19328471]
[1673253018536,2.84669499,1310.6,1310.5,5.19328471]
[1673253019242,5.1265778,1310.6,1310.5,5.19328471]
[1673253019448,2.84669499,1310.6,1310.5,5.19328471]
[1673253019666,5.12661967,1310.6,1310.5,28.08529471]
[1673253020379,2.27992468,1310.6,1310.5,28.08529471]
[1673253021484,2.27992468,1310.6,1310.5,20.45462471]
[1673253022211,2.27992468,1310.6,1310.5,28.08529471]
[1673253022429,2.27992468,1310.7,1310.5,44.25581771]
[1673253022589,5.15767095,1310.8,1310.7,22.88853]
[1673253022796,2.31097596,1310.8,1310.7,25.88853]
[1673253023006,2.31097596,1310.8,1310.7,30.45349626]
[1673253023878,0.03105128,1310.8,1310.7,30.45349626]
[1673253025053,2.31097596,1310.8,1310.7,30.45349626]
[1673253025223,5.15767095,1310.8,1310.7,30.45349626]
[1673253025434,2.31097596,1310.8,1310.7,30.45141943]
[1673253025650,5.15767095,1310.8,1310.7,30.45141943]
[1673253026596,2.31097596,1310.8,1310.7,30.45141943]
[1673253027421,0.03105128,1310.8,1310.7,30.45141943]
[1673253029685,0.03105128,1310.8,1310.7,34.44056894]
[1673253031775,0.03105128,1310.8,1310.7,19.18154894]
[1673253032103,2.31097596,1310.8,1310.7,15.38012102]
[1673253032472,2.31097596,1310.8,1310.7,14.61658268]
[1673253032893,2.31097596,1310.8,1310.7,3.0]
[1673253033119,5.15396625,1310.8,1310.7,3.0]
[1673253033318,2.87774627,1310.8,1310.7,3.0]
[1673253033685,6.6018217,1310.8,1310.6,11.76665966]
[1673253033876,2.27610726,1310.7,1310.6,11.76665966]
[1673253034203,2.27610726,1310.7,1310.6,4.13659966]
[1673253036569,5.12280225,1310.7,1310.6,4.13659966]
[1673253037030,5.12334227,1310.7,1310.6,4.13659966]
[1673253037250,6.35267258,1310.7,1310.6,4.13659966]
[1673253037460,5.12125162,1310.7,1310.6,4.13659966]
[1673253038195,2.84461437,1310.7,1310.6,4.13659966]
[1673253041095,5.12157717,1310.7,1310.6,4.13659966]
[1673253041685,2.84461437,1310.7,1310.6,4.13659966]
[1673253042661,6.03284184,1310.7,1310.6,4.13659966]
[1673253042879,6.03284184,1310.7,1310.6,1.13659966]
[1673253042880,28.7122925,1310.7,1310.6,1.13659966]
[1673253043186,36.3418025,1310.7,1310.6,1.13659966]
[1673253043358,32.7122925,1310.7,1310.6,1.13659966]
[1673253043811,40.3418025,1310.7,1310.6,1.13659966]
[1673253044005,36.3418025,1310.7,1310.6,1.13659966]
[1673253044547,28.7122925,1310.7,1310.6,1.13659966]
[1673253045095,22.67945066,1310.7,1310.6,1.13659966]
[1673253045445,30.45125165,1310.7,1310.6,1.13659966]
[1673253045701,27.42545066,1310.7,1310.6,1.13659966]
[1673253045907,33.45124983,1310.7,1310.6,1.13659966]
[1673253046130,30.45124983,1310.7,1310.6,1.13659966]
[1673253046437,33.45124983,1310.7,1310.6,1.13659966]
[1673253046767,33.45123297,1310.7,1310.6,1.13659966]
[1673253047277,24.42545066,1310.7,1310.6,1.13659966]
[1673253047683,28.42545066,1310.7,1310.6,1.13659966]
[1673253047894,42.08074951,1310.7,1310.6,1.13659966]
[1673253048078,34.45123951,1310.7,1310.6,1.13659966]
[1673253048497,26.82172951,1310.7,1310.6,1.13659966]
[1673253049155,22.82172951,1310.7,1310.6,1.13659966]
[1673253049363,19.79594066,1310.7,1310.6,1.13659966]
[1673253049695,16.95380629,1310.7,1310.6,1.13659966]
[1673253049908,26.39244913,1310.7,1310.6,1.13659966]
[1673253050136,20.36666427,1310.7,1310.6,1.13659966]
[1673253050281,17.36666427,1310.7,1310.6,1.13659966]
[1673253051226,31.02194467,1310.7,1310.6,1.13659966]
[1673253051907,36.02194113,1310.7,1310.6,1.13659966]
[1673253052754,29.99617427,1310.7,1310.6,1.13659966]
[1673253052924,36.02194072,1310.7,1310.6,1.13659966]
[1673253054196,43.65145072,1310.7,1310.6,1.13659966]
[1673253055013,36.02194072,1310.7,1310.6,1.13659966]
[1673253056099,43.65145072,1310.7,1310.6,1.13659966]
[1673253057351,37.62568427,1310.7,1310.6,1.13659966]
[1673253057580,43.65438994,1310.7,1310.6,1.13659966]
[1673253057889,32.62568427,1310.7,1310.6,1.13659966]
[1673253058105,32.62568427,1310.7,1310.6,1.13288633]
[1673253058275,38.65439048,1310.7,1310.6,1.13288633]
[1673253058684,31.02488048,1310.7,1310.6,1.13288633]
[1673253058899,29.99617427,1310.7,1310.6,1.13288633]
[1673253060927,37.62568427,1310.7,1310.6,1.13288633]
[1673253061142,29.99617427,1310.7,1310.6,1.13288633]
[1673253061553,37.62568427,1310.7,1310.6,1.13288633]
[1673253062261,43.65437257,1310.7,1310.6,1.13288633]
[1673253062514,43.65437257,1310.7,1310.6,2.22467499]
[1673253062737,37.62568427,1310.7,1310.6,2.22467499]
[1673253063202,36.02486257,1310.7,1310.6,2.22467499]
[1673253063412,36.02486257,1310.7,1310.6,1.13288633]
[1673253063640,29.99617427,1310.7,1310.6,1.13288633]
[1673253063851,36.024867,1310.7,1310.6,1.13288633]
[1673253064127,29.99617427,1310.7,1310.6,1.13288633]
[1673253064459,36.024867,1310.7,1310.6,2.22467499]
[1673253064675,29.99617427,1310.7,1310.6,2.22467499]
[1673253064936,24.99617427,1310.7,1310.6,2.22467499]
[1673253065098,32.62568427,1310.7,1310.6,2.22467499]
[1673253065303,23.24917427,1310.7,1310.6,1.13288633]
[1673253065974,28.24917427,1310.7,1310.6,1.13288633]
[1673253066378,28.24917427,1310.7,1310.6,2.22467499]
[1673253066593,34.27727168,1310.7,1310.6,2.22467499]
[1673253067224,41.90678168,1310.7,1310.6,2.22467499]
[1673253067439,28.24917427,1310.7,1310.6,1.13288633]
[1673253068364,28.24917427,1310.7,1310.6,2.22467499]
[1673253068723,23.24917427,1310.7,1310.6,2.22467499]
[1673253069356,23.24917427,1310.7,1310.6,1.13288633]
[1673253070383,23.24917427,1310.7,1310.6,2.22467499]
[1673253071527,23.24917427,1310.7,1310.6,1.13288633]
[1673253071945,19.83631629,1310.7,1310.6,1.13288633]
[1673253072207,27.46582629,1310.7,1310.6,1.13288633]
[1673253072368,30.87112219,1310.7,1310.6,2.22467499]
[1673253072994,30.29832219,1310.7,1310.6,2.22467499]
[1673253073564,30.29832219,1310.7,1310.6,1.13288633]
[1673253073783,15.03930219,1310.7,1310.6,0.71774633]
[1673253074378,15.03930219,1310.7,1310.6,1.82108566]
[1673253075362,15.03930219,1310.7,1310.6,0.71774633]
[1673253076359,15.03930219,1310.7,1310.6,1.82108566]
[1673253077567,15.03930219,1310.7,1310.6,0.71774633]
[1673253078062,11.62384751,1310.7,1310.6,0.71774633]
[1673253078569,11.62384751,1310.7,1310.6,1.82167736]
[1673253080147,15.59356429,1310.7,1310.6,1.82167736]
[1673253083123,23.22307429,1310.7,1310.6,1.82167736]
[1673253084922,15.59356429,1310.7,1310.6,1.82167736]
[1673253085508,15.59356429,1310.7,1310.6,0.71774633]
[1673253086259,23.22307429,1310.7,1310.6,0.71774633]
[1673253086461,23.22307429,1310.7,1310.6,1.82759437]
[1673253086928,29.22406545,1310.7,1310.6,1.82759437]
[1673253087250,21.59455545,1310.7,1310.6,1.82759437]
[1673253087460,15.59356429,1310.7,1310.6,1.82759437]
[1673253087776,34.22405117,1310.7,1310.6,1.82759437]
[1673253087984,26.61601401,1310.7,1310.6,1.82759437]
[1673253088195,22.62482439,1310.7,1310.6,1.82759437]
[1673253089229,22.62482224,1310.7,1310.6,1.82759437]
[1673253089441,22.62482224,1310.7,1310.6,0.71774633]
[1673253090064,16.62384751,1310.7,1310.6,0.71774633]
[1673253090621,16.62384751,1310.7,1310.6,1.82775536]
[1673253090828,20.6148861,1310.7,1310.6,1.82775536]
[1673253091347,16.62384751,1310.7,1310.6,1.82775536]
[1673253091724,20.61492336,1310.7,1310.6,1.82775536]
[1673253091934,20.61487058,1310.7,1310.6,1.82775536]
[1673253092143,16.62384751,1310.7,1310.6,1.82775536]
[1673253092356,22.62600787,1310.7,1310.6,1.82775536]
[1673253093081,26.61621567,1310.7,1310.6,1.82775536]
[1673253093291,22.6260179,1310.7,1310.6,0.71774633]
[1673253093554,17.6260179,1310.7,1310.6,0.71774633]
[1673253093730,11.62384751,1310.7,1310.6,0.71774633]
[1673253093933,16.31307546,1310.7,1310.6,0.71774633]
[1673253094167,21.31307546,1310.7,1310.6,0.71774633]
[1673253094379,21.31307546,1310.7,1310.6,1.82393943]
[1673253094552,27.31583614,1310.7,1310.6,1.82393943]
[1673253095012,21.31307546,1310.7,1310.6,1.82393943]
[1673253096579,25.30222497,1310.7,1310.6,1.82393943]
[1673253096827,46.56342098,1310.7,1310.6,1.82393943]
[1673253097263,38.93390955,1310.7,1310.6,1.82393943]
[1673253097471,38.93390955,1310.7,1310.6,0.7139304]
[1673253098437,46.56341955,1310.7,1310.6,1.82689994]
[1673253098740,39.50552801,1310.7,1310.6,1.82689994]
[1673253099134,33.50453497,1310.7,1310.6,1.82689994]
[1673253099794,41.13404497,1310.7,1310.6,1.82689994]
[1673253100415,46.5616304,1310.7,1310.6,1.82689994]
[1673253100631,46.56222206,1310.7,1310.6,1.82689994]
[1673253101004,40.56124497,1310.7,1310.6,1.82689994]
[1673253101435,40.56124497,1310.7,1310.6,0.7139304]
[1673253102294,46.56162655,1310.7,1310.6,0.7139304]
[1673253102509,46.56162655,1310.7,1310.6,1.82689994]
[1673253103996,40.56124497,1310.7,1310.6,1.82689994]
[1673253104160,46.56162129,1310.7,1310.6,1.82689994]
[1673253104794,41.87239334,1310.7,1310.6,1.82689994]
[1673253105373,41.87239334,1310.7,1310.6,0.7139304]
[1673253106646,41.87239334,1310.7,1310.6,1.82689994]
[1673253107237,41.87239132,1310.7,1310.6,1.82689994]
[1673253107567,36.87239132,1310.7,1310.6,1.82689994]
[1673253107980,30.87201702,1310.7,1310.6,1.82689994]
[1673253108144,36.87240558,1310.7,1310.6,1.82689994]
[1673253108363,41.87240558,1310.7,1310.6,1.82689994]
[1673253108818,42.10240558,1310.7,1310.6,1.82689994]
[1673253109450,42.10240558,1310.7,1310.6,0.7139304]
[1673253110358,42.10240558,1310.7,1310.6,1.82689994]
[1673253110819,42.10240558,1310.7,1310.6,1.11296954]
[1673253111351,0.05,1310.5,1310.3,21.5502]
[1673253111669,2.84620922,1310.4,1310.3,22.1232]
[1673253111897,2.84620922,1310.4,1310.3,3.0]
[1673253113246,2.84620922,1310.4,1310.2,3.573]
[1673253113466,2.27752468,1310.3,1310.2,6.437909]
[1673253116287,2.27752468,1310.3,1310.2,6.43542995]
[1673253116855,2.27752468,1310.3,1310.2,5.864909]
[1673253119692,2.27752468,1310.3,1310.2,13.497329]
[1673253120002,2.27752468,1310.3,1310.2,5.864909]
[1673253122183,5.1237339,1310.3,1310.2,5.864909]
[1673253122842,2.27752468,1310.3,1310.2,5.864909]
[1673253123190,5.1237339,1310.3,1310.2,5.864909]
[1673253124837,2.27752468,1310.3,1310.2,5.864909]
[1673253125201,5.1237339,1310.3,1310.2,5.864909]
[1673253127360,2.84620922,1310.3,1310.2,3.0]
[1673253129322,0.00643894,1310.3,1310.2,3.0]
[1673253129533,9.42170501,1310.3,1310.1,8.0657]
[1673253129790,2.84748513,1310.2,1310.1,8.0657]
[1673253129939,2.84748513,1310.2,1310.1,3.0]
[1673253130160,2.84748513,1310.2,1310.0,16.52930536]
[1673253130521,2.27659282,1310.1,1310.0,1.43570536]
[1673253131879,2.27659282,1310.1,1310.0,4.43570536]
[1673253133716,5.12407795,1310.2,1310.0,4.43570536]
[1673253137223,2.27659282,1310.2,1310.0,4.43570536]
[1673253137856,5.12407795,1310.2,1310.0,4.43570536]
[1673253138341,2.27659282,1310.2,1310.0,4.43570536]
[1673253138812,5.12407795,1310.2,1310.0,4.43570536]
[1673253139331,2.27659282,1310.2,1310.0,4.43570536]
[1673253139513,5.12407795,1310.2,1310.0,4.43570536]
[1673253140171,2.27659282,1310.2,1310.0,4.43570536]
[1673253140481,5.12407795,1310.2,1310.0,4.43570536]
[1673253141222,2.27659282,1310.2,1310.0,4.43570536]
[1673253144339,5.12407795,1310.2,1310.0,4.43570536]
[1673253145877,2.27659282,1310.2,1310.0,4.43570536]
[1673253146041,2.27659282,1310.2,1310.0,12.06926536]
[1673253148386,14.09231689,1310.3,1310.0,12.06926536]
[1673253148596,15.86017253,1310.3,1310.0,12.06926536]
[1673253148805,14.09231689,1310.3,1310.0,12.06926536]
[1673253150476,14.14231689,1310.3,1310.0,12.06926536]
[1673253150688,14.09231689,1310.3,1310.0,12.06926536]
[1673253151361,14.09231689,1310.3,1310.0,12.06725753]
[1673253151879,2.27659282,1310.2,1310.0,12.06725753]
[1673253155548,2.27659282,1310.2,1310.0,13.82025753]
[1673253155727,2.27659282,1310.2,1310.0,12.06725753]
[1673253159650,5.12407795,1310.2,1310.0,12.06725753]
[1673253159811,2.27659282,1310.2,1310.0,12.06725753]
[1673253160795,0.05,1310.1,1310.0,12.06725753]
[1673253161103,2.27659282,1310.2,1310.0,12.06725753]
[1673253161531,2.27659282,1310.2,1310.1,1.12566004]
[1673253161747,2.27659282,1310.2,1310.1,4.12566004]
[1673253162638,5.12407795,1310.2,1310.1,4.12566004]
[1673253168889,5.12524131,1310.2,1310.1,4.12566004]
[1673253170419,5.12538239,1310.2,1310.1,4.12566004]
[1673253171155,2.84748513,1310.2,1310.1,4.12566004]
[1673253172562,4.31330264,1310.2,1310.1,4.12566004]
[1673253174924,4.31330264,1310.2,1310.1,4.12188965]
[1673253175612,2.84748513,1310.2,1310.1,4.12188965]
[1673253188194,5.1264986,1310.2,1310.1,4.12188965]
[1673253188408,5.1264986,1310.2,1310.1,11.75488965]
[1673253190014,5.1264986,1310.3,1310.1,39.50849946]
[1673253190192,5.1264986,1310.3,1310.2,1.753]
[1673253190539,5.1264986,1310.3,1310.2,9.51653834]
[1673253191984,2.27901347,1310.3,1310.2,24.78137834]
[1673253192596,2.27901347,1310.3,1310.2,17.14895834]
[1673253192810,2.27901347,1310.3,1310.2,21.04138256]
[1673253196001,2.27901347,1310.3,1310.2,21.03776047]
[1673253196587,2.27901347,1310.3,1310.2,28.67018047]
[1673253198422,2.27901347,1310.3,1310.2,21.03776047]
[1673253201151,2.27901347,1310.3,1310.2,13.38208847]
[1673253203490,2.27901347,1310.3,1310.2,21.01450847]
[1673253203813,2.27901347,1310.3,1310.2,28.64692847]
[1673253205485,2.27901347,1310.3,1310.2,21.01450847]
[1673253206714,2.27901347,1310.3,1310.2,9.38208847]
[1673253207447,2.27901347,1310.3,1310.2,10.51063902]
[1673253207655,2.27901347,1310.3,1310.2,10.51263902]
[1673253209442,2.27701347,1310.3,1310.2,10.51063902]
[1673253209669,2.84748513,1310.4,1310.2,10.51063902]
[1673253213328,2.84748513,1310.4,1310.2,6.6182148]
[1673253214434,2.84748513,1310.4,1310.2,14.2505848]
[1673253215856,2.84748513,1310.4,1310.2,12.52445889]
[1673253216717,2.84748513,1310.4,1310.2,4.89208889]
[1673253217481,2.27679051,1310.3,1310.2,4.89208889]
[1673253218647,2.27679051,1310.3,1310.2,3.76353834]
[1673253219431,2.27679051,1310.3,1310.2,4.8922988]
[1673253221694,5.12427564,1310.3,1310.2,4.8922988]
[1673253223046,2.27679051,1310.3,1310.2,12.5247188]
[1673253223975,5.12427564,1310.3,1310.2,12.5247188]
[1673253224991,2.27679051,1310.3,1310.2,12.5247188]
[1673253226203,5.12427564,1310.3,1310.2,12.5247188]
[1673253226886,5.12427564,1310.3,1310.2,4.8922988]
[1673253227250,3.7014578,1310.3,1310.2,4.12876046]
[1673253227458,0.85397267,1310.3,1310.2,1.12876046]
[1673253227777,3.70374971,1310.3,1310.2,1.12876046]
[1673253228182,0.85397267,1310.3,1310.2,1.12876046]
[1673253230670,11.90126374,1310.3,1310.2,1.12876046]
[1673253230992,8.48581267,1310.3,1310.2,1.12556889]
[1673253231237,0.85397267,1310.3,1310.2,1.12556889]
[1673253231437,8.48581267,1310.3,1310.2,1.12556889]
[1673253231856,8.48230941,1310.3,1310.2,1.12556889]
[1673253232983,11.89776048,1310.3,1310.2,1.12556889]
[1673253233193,19.52960048,1310.3,1310.2,1.12556889]
[1673253236604,11.89776048,1310.3,1310.2,1.12556889]
[1673253238477,11.89776048,1310.3,1310.1,3.0]
[1673253238692,5.12589863,1310.2,1310.1,3.0]
[1673253239442,5.12589863,1310.2,1310.1,4.13000507]
[1673253240308,2.27817717,1310.2,1310.1,4.13000507]
[1673253241187,5.12589863,1310.2,1310.1,4.13000507]
[1673253241819,2.27817717,1310.2,1310.1,4.13000507]
[1673253251413,5.12589863,1310.2,1310.1,4.13000507]
[1673253251747,5.12564861,1310.2,1310.1,4.13000507]
[1673253252120,5.12552638,1310.2,1310.1,4.13000507]
[1673253252377,5.12553678,1310.2,1310.1,4.13000507]
[1673253253478,2.84772146,1310.2,1310.1,4.13000507]
[1673253253931,5.12565109,1310.2,1310.1,4.13000507]
[1673253254588,5.12565109,1310.2,1310.1,4.12752522]
[1673253258745,5.12574359,1310.2,1310.1,4.12752522]
[1673253259391,5.12574359,1310.2,1310.1,2.99752015]
[1673253260593,2.84772146,1310.2,1310.1,4.1277256]
[1673253261175,5.12611051,1310.2,1310.1,4.1277256]
[1673253261613,2.84772146,1310.2,1310.1,4.1277256]
[1673253262063,5.12608503,1310.2,1310.1,4.1277256]
[1673253262231,2.84772146,1310.2,1310.1,4.1277256]
[1673253264386,5.59864391,1310.2,1310.1,4.1277256]
[1673253271440,5.59864391,1310.2,1310.1,2.99752015]
[1673253272229,2.84772146,1310.2,1310.1,2.99752015]